fUST/lending_fUST_20251030
["ID","MTS","AMOUNT","RATE_DAILY","PERIOD"]
[392679455,1761809445520,-500.0,0.0003019,4]
[392679457,1761809445632,-500.0,0.0003019,4]
[392679458,1761809445642,-614.98,0.0003019,4]
[392679459,1761809445651,-500.0,0.0003019,4]
[392679460,1761809445664,-500.0,0.0003019,4]
[392679461,1761809445673,-2512.83,0.0003019,3]
[392679462,1761809445684,-500.0,0.0003019,4]
[392679463,1761809445693,-500.0,0.0003019,4]
[392679464,1761809445703,-500.0,0.0003019,4]
[392679465,1761809445712,-606.11,0.0003019,4]
[392679466,1761809445721,-579.72,0.0003019,4]
[392679467,1761809445731,-500.0,0.00030192,4]
[392679468,1761809445740,-500.0,0.00030192,4]
[392679469,1761809445750,-500.0,0.00030192,4]
[392679470,1761809445760,-500.0,0.00030192,4]
[392679471,1761809445769,-536.13,0.00030192,4]
[392679472,1761809445778,-500.0,0.00030192,4]
[392679473,1761809445788,-520.56,0.00030192,4]
[392679474,1761809445797,-500.0,0.00030192,4]
[392679475,1761809445806,-500.0,0.00030192,4]
[392679476,1761809445815,-500.0,0.00030192,4]
[392679477,1761809445826,-500.0,0.00030192,4]
[392679478,1761809445837,-457.16,0.00030192,4]
[392679479,1761809445846,-500.0,0.00030192,4]
[392679480,1761809445855,-500.0,0.00030193,4]
[392679481,1761809445864,-500.0,0.00030193,4]
[392679482,1761809445873,-500.0,0.00030193,4]
[392679483,1761809445883,-500.0,0.00030193,4]
[392679484,1761809445893,-500.0,0.00030193,4]
[392679485,1761809445902,-500.0,0.00030193,4]
[392679486,1761809445912,-500.0,0.00030193,4]
[392679487,1761809445922,-500.0,0.00030193,4]
[392679488,1761809445931,-500.0,0.00030193,4]
[392679489,1761809445941,-500.0,0.00030193,4]
[392679490,1761809445951,-500.0,0.00030193,4]
[392679491,1761809445960,-500.0,0.00030193,4]
[392679492,1761809445969,-500.0,0.00030193,4]
[392679493,1761809445979,-500.0,0.00030193,4]
[392679494,1761809445988,-407.53,0.00030193,4]
[392679495,1761809445998,-424.96,0.00030193,4]
[392679496,1761809446007,-612.76,0.00030193,4]
[392679497,1761809446016,-500.0,0.00030193,4]
[392679499,1761809446026,-500.0,0.00030193,4]
[392679501,1761809446035,-500.0,0.00030193,4]
[392679502,1761809446045,-500.0,0.00030193,4]
[392679503,1761809446055,-500.0,0.00030193,4]
[392679504,1761809446064,-500.0,0.00030193,4]
[392679505,1761809446073,-234.1,0.00030193,4]
[392679507,1761809446083,-500.0,0.00030193,4]
[392679509,1761809446092,-500.0,0.00030193,4]
[392679510,1761809446102,-255.91,0.00030193,4]
[392679511,1761809446112,-500.0,0.00030193,4]
[392679512,1761809446121,-741.07,0.00030193,4]
[392679513,1761809446131,-500.0,0.00030193,4]
[392679514,1761809446140,-500.0,0.00030193,4]
[392679515,1761809446150,-260.8,0.00030193,4]
[392679516,1761809446159,-168.85,0.00030193,4]
[392679517,1761809446169,-500.0,0.00030193,4]
[392679518,1761809446178,-500.0,0.00030193,4]
[392679519,1761809446187,-500.0,0.00030193,4]
[392679520,1761809446196,-500.0,0.00030193,4]
[392679521,1761809446205,-500.0,0.00030193,4]
[392679522,1761809446215,-500.0,0.00030193,4]
[392679523,1761809446224,-436.88,0.00030193,4]
[392679524,1761809446234,-500.0,0.00030193,4]
[392679525,1761809446244,-500.0,0.00030193,4]
[392679526,1761809446253,-500.0,0.00030193,4]
[392679527,1761809446263,-500.0,0.00030193,4]
[392679528,1761809446272,-500.0,0.00030193,2]
[392679529,1761809446282,-500.0,0.00030193,4]
[392679530,1761809446291,-500.0,0.00030193,4]
[392679531,1761809446301,-500.0,0.00030193,4]
[392679532,1761809446310,-414.9,0.00030193,4]
[392679533,1761809446320,-500.0,0.00030193,4]
[392679534,1761809446329,-500.0,0.00030193,4]
[392679535,1761809446338,-500.0,0.00030193,4]
[392679536,1761809446348,-500.0,0.00030193,4]
[392679537,1761809446357,-500.0,0.00030193,4]
[392679538,1761809446367,-500.0,0.00030193,4]
[392679539,1761809446376,-500.0,0.00030193,4]
[392679540,1761809446385,-500.0,0.00030193,4]
[392679541,1761809446395,-635.79,0.00030193,4]
[392679542,1761809446406,-500.0,0.00030193,4]
[392679543,1761809446416,-500.0,0.00030193,4]
[392679544,1761809446426,-531.59515198,0.00030193,4]
[392679545,1761809446435,-500.0,0.00030193,4]
[392679546,1761809446445,-453.94,0.00030194,4]
[392679547,1761809446455,-500.0,0.00030194,4]
[392679548,1761809446465,-539.74,0.00030194,4]
[392679549,1761809446474,-500.0,0.00030194,4]
[392679550,1761809446488,-1001.78320274,0.00030221,5]
[392679551,1761809446497,-1001.35284778,0.00030221,5]
[392679552,1761809446508,-1000.0,0.00030221,5]
[392679553,1761809446517,-1001.27625639,0.00030221,5]
[392679554,1761809446527,-1002.07627924,0.00030221,5]
[392679555,1761809446536,-1000.0,0.00030221,5]
[392679556,1761809446545,-1000.83309303,0.00030221,5]
[392679557,1761809446555,-1001.85332794,0.00030221,5]
[392679558,1761809446564,-1000.0,0.00030221,5]
[392679559,1761809446573,-1000.0,0.00030221,5]
[392679560,1761809446583,-1000.0,0.00030221,5]
[392679561,1761809446592,-1000.0,0.00030221,5]
[392679562,1761809446601,-1000.0,0.00030221,5]
[392679563,1761809446610,-1000.0,0.00030221,5]
[392679564,1761809446620,-1000.0,0.00030221,5]
[392679565,1761809446630,-1000.0,0.00030221,5]
[392679566,1761809446639,-1000.0,0.00030221,5]
[392679567,1761809446649,-1000.0,0.00030221,5]
[392679568,1761809446659,-1000.0,0.00030221,5]
[392679569,1761809446669,-1000.0,0.00030221,5]
[392679570,1761809446678,-423.54485226,0.00030221,5]
[392679571,1761809446687,-1000.0,0.00030221,5]
[392679572,1761809446696,-260.0,0.00030248,2]
[392679573,1761809446706,-1666.88,0.00030325,4]
[392679574,1761809446715,-500.0,0.00030325,4]
[392679575,1761809446725,-736.85522654,0.00030352,2]
[392679576,1761809446735,-500.0,0.00030453,4]
[392679577,1761809446744,-500.0,0.00030453,4]
[392679578,1761809446754,-500.0,0.00030453,4]
[392679579,1761809446763,-500.0,0.00030453,4]
[392679580,1761809446773,-647.36,0.00030453,4]
[392679581,1761809446782,-500.0,0.00030453,4]
[392679582,1761809446792,-593.57,0.00030453,4]
[392679583,1761809446802,-500.0,0.00030453,4]
[392679584,1761809446811,-699.95,0.00030453,4]
[392679585,1761809446821,-500.0,0.00030453,4]
[392679586,1761809446830,-500.0,0.00030453,4]
[392679587,1761809446839,-969.18,0.00030453,4]
[392679588,1761809446848,-6089.26,0.00030453,4]
[392679589,1761809446857,-500.0,0.00030453,4]
[392679590,1761809446868,-500.0,0.00030453,4]
[392679591,1761809446877,-538.88,0.00030453,4]
[392679592,1761809446890,-910.8,0.00030453,4]
[392679593,1761809446899,-202.56,0.00030454,4]
[392679594,1761809446909,-244.76,0.00030454,4]
[392679595,1761809446918,-660.73,0.00030454,4]
[392679596,1761809446927,-500.0,0.00030454,4]
[392679597,1761809446936,-500.0,0.00030454,4]
[392679598,1761809446946,-500.0,0.00030454,4]
[392679599,1761809447022,-500.0,0.00030454,4]
[392679600,1761809447032,-589.59,0.00030454,4]
[392679601,1761809447041,-500.0,0.00030454,4]
[392679602,1761809447050,-500.0,0.00030454,4]
[392679603,1761809447060,-571.19,0.00030454,4]
[392679604,1761809447070,-500.0,0.00030454,4]
[392679605,1761809447079,-698.98,0.00030454,4]
[392679606,1761809447088,-1406.07509234,0.00030456,2]
[392679607,1761809447098,-2650.51625229,0.00030456,2]
[392679608,1761809447107,-1203.34,0.00030457,3]
[392679609,1761809447116,-601.66,0.00030457,3]
[392679610,1761809447126,-300.84,0.00030457,3]
[392679611,1761809447137,-1576.76,0.00030458,3]
[392679612,1761809447148,-500.0,0.00030464,4]
[392679613,1761809447157,-500.0,0.00030464,4]
[392679614,1761809447166,-500.0,0.00030464,4]
[392679615,1761809447175,-500.0,0.00030464,4]
[392679616,1761809447185,-500.0,0.00030464,4]
[392679617,1761809447194,-500.0,0.00030464,4]
[392679618,1761809447204,-500.0,0.00030464,4]
[392679619,1761809447213,-647.22,0.00030464,4]
[392679620,1761809447222,-995.37,0.00030464,4]
[392679621,1761809447232,-501.72,0.00030464,4]
[392679622,1761809447242,-523.13,0.00030464,4]
[392679623,1761809447251,-500.0,0.00030464,4]
[392679624,1761809447261,-500.0,0.00030464,4]
[392679625,1761809447271,-614.98,0.00030464,4]
[392679626,1761809447280,-500.0,0.00030464,4]
[392679627,1761809447289,-500.0,0.00030464,4]
[392679628,1761809447298,-2512.83,0.00030464,3]
[392679629,1761809447308,-500.0,0.00030464,4]
[392679630,1761809447319,-500.0,0.00030464,4]
[392679631,1761809447329,-606.11,0.00030464,4]
[392679632,1761809447339,-579.72,0.00030464,4]
[392679633,1761809447348,-301.006937,0.00030466,4]
[392679634,1761809447358,-500.0,0.00030466,4]
[392679635,1761809447368,-500.0,0.00030466,4]
[392679636,1761809447377,-500.0,0.00030466,4]
[392679637,1761809447386,-536.13,0.00030466,4]
[392679638,1761809447397,-500.0,0.00030466,4]
[392679639,1761809447410,-441.8,0.00030466,4]
[392679640,1761809447419,-500.0,0.00030466,4]
[392679641,1761809447428,-500.0,0.00030466,4]
[392679642,1761809447443,-500.0,0.00030466,4]
[392679643,1761809447459,-625.48,0.00030466,4]
[392679644,1761809447469,-500.0,0.00030467,4]
[392679645,1761809447478,-500.0,0.00030467,4]
[392679646,1761809447487,-500.0,0.00030467,4]
[392679647,1761809447497,-500.0,0.00030467,4]
[392679648,1761809447506,-500.0,0.00030467,4]
[392679649,1761809447515,-500.0,0.00030467,4]
[392679650,1761809447525,-500.0,0.00030467,4]
[392679651,1761809447534,-500.0,0.00030467,4]
[392679652,1761809447543,-500.0,0.00030467,4]
[392679653,1761809447554,-500.0,0.00030467,4]
[392679654,1761809447563,-500.0,0.00030467,4]
[392679655,1761809447572,-500.0,0.00030467,4]
[392679656,1761809447581,-500.0,0.00030467,4]
[392679657,1761809447591,-331.07,0.00030467,4]
[392679658,1761809447600,-500.0,0.00030467,4]
[392679659,1761809447609,-500.0,0.00030467,4]
[392679660,1761809447619,-500.0,0.00030467,4]
[392679661,1761809447628,-500.0,0.00030467,4]
[392679662,1761809447638,-500.0,0.00030467,4]
[392679663,1761809447647,-500.0,0.00030467,4]
[392679664,1761809447656,-500.0,0.00030467,4]
[392679665,1761809447666,-500.0,0.00030467,4]
[392679666,1761809447676,-500.0,0.00030467,4]
[392679667,1761809447685,-741.07,0.00030467,4]
[392679668,1761809447694,-500.0,0.00030467,4]
[392679669,1761809447704,-500.0,0.00030467,4]
[392679670,1761809447712,-514.10057288,0.00030467,4]
[392679671,1761809447721,-170.33,0.00030467,4]
[392679672,1761809447730,-500.0,0.00030467,4]
[392679673,1761809447739,-500.0,0.00030467,4]
[392679674,1761809447748,-500.0,0.00030467,4]
[392679675,1761809447758,-500.0,0.00030467,4]
[392679676,1761809447768,-500.0,0.00030467,4]
[392679677,1761809447780,-500.0,0.00030467,4]
[392679678,1761809447798,-500.0,0.00030467,4]
[392679679,1761809447808,-500.0,0.00030467,4]
[392679680,1761809447817,-424.15,0.00030467,2]
[392679681,1761809447829,-500.0,0.00030467,4]
[392679682,1761809447839,-500.0,0.00030467,4]
[392679683,1761809447848,-500.0,0.00030467,4]
[392679684,1761809447858,-500.0,0.00030467,4]
[392679685,1761809447868,-500.0,0.00030467,4]
[392679686,1761809447878,-157.16,0.00030467,4]
[392679687,1761809447887,-500.0,0.00030467,4]
[392679688,1761809447897,-500.0,0.00030467,4]
[392679689,1761809447907,-635.79,0.00030467,4]
[392679690,1761809447916,-500.0,0.00030467,4]
[392679691,1761809447925,-500.0,0.00030467,4]
[392679692,1761809447935,-500.0,0.00030467,4]
[392679693,1761809447944,-450.64,0.00030468,4]
[392679694,1761809447953,-500.0,0.00030468,4]
[392679695,1761809447963,-1666.88,0.00030599,4]
[392679696,1761809447972,-500.0,0.00030599,4]
[392679697,1761809447981,-150.63343419,0.00030721,5]
[392679698,1761809447991,-500.0,0.00030727,4]
[392679699,1761809448000,-500.0,0.00030727,4]
[392679700,1761809448010,-500.0,0.00030727,4]
[392679701,1761809448019,-500.0,0.00030727,4]
[392679702,1761809448029,-500.0,0.00030727,4]
[392679703,1761809448038,-593.57,0.00030727,4]
[392679704,1761809448048,-699.95,0.00030727,4]
[392679705,1761809448057,-500.0,0.00030727,4]
[392679706,1761809448067,-599.16,0.00030727,4]
[392679707,1761809448076,-608.04,0.00030727,4]
[392679708,1761809448085,-969.18,0.00030727,4]
[392679709,1761809448095,-6089.26,0.00030727,4]
[392679710,1761809448104,-500.0,0.00030727,4]
[392679711,1761809448114,-500.0,0.00030727,4]
[392679712,1761809448123,-538.88,0.00030727,4]
[392679713,1761809448133,-910.8,0.00030727,4]
[392679714,1761809448142,-660.73,0.00030728,4]
[392679715,1761809448151,-500.0,0.00030728,4]
[392679716,1761809448162,-327.92,0.00030728,4]
[392679717,1761809448172,-500.0,0.00030728,4]
[392679718,1761809448181,-500.0,0.00030728,4]
[392679719,1761809448191,-589.59,0.00030728,4]
[392679720,1761809448200,-500.0,0.00030728,4]
[392679721,1761809448209,-500.0,0.00030728,4]
[392679722,1761809448219,-571.19,0.00030728,4]
[392679723,1761809448228,-500.0,0.00030728,4]
[392679724,1761809448239,-698.98,0.00030728,4]
[392679725,1761809448249,-1406.07509234,0.0003073,2]
[392679726,1761809448320,-2650.51625229,0.0003073,2]
[392679727,1761809448330,-500.0,0.00030738,4]
[392679728,1761809448344,-500.0,0.00030738,4]
[392679729,1761809448353,-500.0,0.00030738,4]
[392679730,1761809448364,-500.0,0.00030738,4]
[392679731,1761809448373,-500.0,0.00030738,4]
[392679732,1761809448382,-500.0,0.00030738,4]
[392679733,1761809448391,-500.0,0.00030738,4]
[392679734,1761809448401,-647.22,0.00030738,4]
[392679735,1761809448415,-995.37,0.00030738,4]
[392679736,1761809448425,-523.13,0.00030738,4]
[392679737,1761809448435,-500.0,0.00030738,4]
[392679738,1761809448445,-500.0,0.00030738,4]
[392679739,1761809448454,-614.98,0.00030738,4]
[392679740,1761809448464,-500.0,0.00030738,4]
[392679741,1761809448473,-500.0,0.00030738,4]
[392679742,1761809448482,-2512.83,0.00030738,3]
[392679743,1761809448491,-500.0,0.00030738,4]
[392679744,1761809448501,-500.0,0.00030738,4]
[392679745,1761809448512,-606.11,0.00030738,4]
[392679746,1761809448521,-579.72,0.00030738,4]
[392679747,1761809448530,-500.0,0.0003074,4]
[392679748,1761809448539,-500.0,0.0003074,4]
[392679749,1761809448549,-500.0,0.0003074,4]
[392679750,1761809448559,-536.13,0.0003074,4]
[392679751,1761809448570,-500.0,0.0003074,4]
[392679752,1761809448579,-500.0,0.0003074,4]
[392679753,1761809448590,-500.0,0.0003074,4]
[392679754,1761809448599,-500.0,0.0003074,4]
[392679755,1761809448608,-500.0,0.00030741,4]
[392679756,1761809448617,-456.33,0.00030741,4]
[392679757,1761809448627,-579.45,0.00030741,4]
[392679758,1761809448636,-500.0,0.00030741,4]
[392679759,1761809448645,-500.0,0.00030741,4]
[392679760,1761809448655,-500.0,0.00030741,4]
[392679761,1761809448665,-500.0,0.00030741,4]
[392679762,1761809448674,-500.0,0.00030741,4]
[392679763,1761809448683,-500.0,0.00030741,4]
[392679764,1761809448692,-500.0,0.00030741,4]
[392679765,1761809448702,-500.0,0.00030741,4]
[392679766,1761809448714,-517.23,0.00030741,4]
[392679767,1761809448723,-500.0,0.00030741,4]
[392679768,1761809448733,-500.0,0.00030741,4]
[392679769,1761809448742,-500.0,0.00030741,4]
[392679770,1761809448751,-500.0,0.00030741,4]
[392679771,1761809448760,-500.0,0.00030741,4]
[392679772,1761809448769,-244.47,0.00030741,4]
[392679773,1761809448778,-500.0,0.00030741,4]
[392679774,1761809448787,-352.8,0.00030741,4]
[392679775,1761809448796,-500.0,0.00030741,4]
[392679776,1761809448805,-500.0,0.00030741,4]
[392679777,1761809448816,-741.07,0.00030741,4]
[392679778,1761809448826,-559.32,0.00030741,4]
[392679779,1761809448835,-500.0,0.00030741,4]
[392679780,1761809448844,-199.8,0.00030741,4]
[392679781,1761809448854,-459.56996786,0.00030741,4]
[392679782,1761809448863,-500.0,0.00030741,4]
[392679783,1761809448872,-500.0,0.00030741,4]
[392679784,1761809448881,-387.48,0.00030741,4]
[392679785,1761809448892,-500.0,0.00030741,4]
[392679786,1761809448901,-306.52,0.00030741,4]
[392679787,1761809448911,-304.6,0.00030741,4]
[392679788,1761809448920,-500.0,0.00030741,4]
[392679789,1761809448929,-500.0,0.00030741,4]
[392679790,1761809448939,-500.0,0.00030741,4]
[392679791,1761809448948,-500.0,0.00030741,4]
[392679792,1761809448958,-433.32,0.00030741,4]
[392679793,1761809448967,-500.0,0.00030741,4]
[392679794,1761809448976,-500.0,0.00030741,4]
[392679795,1761809448986,-635.79,0.00030741,4]
[392679796,1761809448996,-500.0,0.00030741,4]
[392679797,1761809449005,-500.0,0.00030741,4]
[392679798,1761809449014,-500.0,0.00030741,4]
[392679799,1761809449023,-500.0,0.00030742,4]
[392679800,1761809449032,-1500.0,0.00030768,5]
[392679801,1761809449040,-1501.49992643,0.00030768,5]
[392679802,1761809449050,-1500.0,0.00030768,5]
[392679803,1761809449059,-1236.23780874,0.00030768,5]
[392679804,1761809449068,-1500.97752362,0.00030768,5]
[392679805,1761809449078,-744.38891097,0.00030768,5]
[392679806,1761809449087,-1500.0,0.00030768,5]
[392679807,1761809449096,-1500.0,0.00030768,5]
[392679808,1761809449105,-1500.0,0.00030768,5]
[392679809,1761809449115,-1500.0,0.00030768,5]
[392679810,1761809449124,-1501.49889935,0.00030768,5]
[392679811,1761809449133,-941.00717966,0.00030768,5]
[392679812,1761809449143,-1502.30379968,0.00030768,5]
[392679813,1761809449152,-1500.0,0.00030768,5]
[392679814,1761809449161,-736.85522654,0.00030803,2]
[392679815,1761809449170,-153.0,0.00030869,2]
[392679816,1761809449180,-1666.88,0.00030873,4]
[392679817,1761809449189,-500.0,0.00030873,4]
[392679818,1761809449198,-410.395526,0.00030893,15]
[392679819,1761809449207,-410.395526,0.00030893,15]
[392679820,1761809449216,-410.395526,0.00030893,15]
[392679821,1761809449226,-410.395526,0.00030893,15]
[392679822,1761809449235,-4218.22527702,0.00030893,2]
[392679823,1761809449253,-7951.54875687,0.00030893,2]
[392679824,1761809449263,-500.0,0.00030903,4]
[392679825,1761809449273,-500.0,0.00030903,4]
[392679826,1761809449283,-490.74528519,0.00030903,4]
[392679827,1761809449293,-500.0,0.00030903,4]
[392679828,1761809449302,-500.0,0.00030903,4]
[392679829,1761809449312,-500.0,0.00030903,4]
[392679830,1761809449321,-500.0,0.00030903,4]
[392679831,1761809449331,-500.0,0.00030903,4]
[392679832,1761809449340,-500.0,0.00030903,4]
[392679833,1761809449350,-500.0,0.00030903,4]
[392679834,1761809449359,-500.0,0.00030903,4]
[392679835,1761809449368,-500.0,0.00030903,4]
[392679836,1761809449378,-592.66,0.00030903,4]
[392679837,1761809449387,-431.26944401,0.00030903,4]
[392679838,1761809449397,-500.0,0.00030903,4]
[392679839,1761809449408,-500.0,0.00030903,4]
[392679840,1761809449419,-500.0,0.00030903,4]
[392679841,1761809449429,-500.0,0.00030903,4]
[392679842,1761809449439,-574.84,0.00030903,4]
[392679843,1761809449545,-500.0,0.00030903,4]
[392679844,1761809449554,-500.0,0.00030903,4]
[392679845,1761809449564,-500.0,0.00030903,4]
[392679846,1761809449574,-500.0,0.00030903,4]
[392679847,1761809449586,-532.74,0.00030903,4]
[392679848,1761809449595,-500.0,0.00030903,4]
[392679849,1761809449604,-500.0,0.00030903,4]
[392679850,1761809449614,-500.0,0.00030903,4]
[392679851,1761809449623,-500.0,0.00030903,4]
[392679852,1761809449632,-500.0,0.00030903,4]
[392679853,1761809449642,-500.0,0.00030903,4]
[392679854,1761809449651,-500.0,0.00030903,4]
[392679855,1761809449660,-500.0,0.00030903,4]
[392679856,1761809449669,-500.0,0.00030903,4]
[392679857,1761809449679,-500.0,0.00030903,4]
[392679858,1761809449688,-500.0,0.00030903,4]
[392679859,1761809449697,-500.0,0.00030903,4]
[392679860,1761809449706,-500.0,0.00030903,4]
[392679861,1761809449715,-500.0,0.00030903,4]
[392679862,1761809449724,-500.0,0.00030903,4]
[392679863,1761809449734,-500.0,0.00030903,4]
[392679864,1761809449743,-500.0,0.00030903,4]
[392679865,1761809449752,-500.0,0.00030903,4]
[392679866,1761809449762,-514.99666383,0.00030903,4]
[392679867,1761809449770,-500.0,0.00030903,4]
[392679868,1761809449780,-500.0,0.00030903,4]
[392679869,1761809449789,-500.0,0.00030903,4]
[392679870,1761809449798,-500.0,0.00030903,4]
[392679871,1761809449806,-500.0,0.00030903,4]
[392679872,1761809449815,-500.0,0.00030903,4]
[392679873,1761809449824,-493.13132325,0.00030903,4]
[392679874,1761809449833,-500.0,0.00030903,4]
[392679875,1761809449842,-500.0,0.00030903,4]
[392679876,1761809449851,-500.0,0.00030903,4]
[392679877,1761809449860,-500.0,0.00030903,4]
[392679878,1761809449870,-500.0,0.00030903,4]
[392679879,1761809449878,-500.0,0.00030903,4]
[392679880,1761809449887,-500.0,0.00030903,4]
[392679881,1761809449896,-500.0,0.00030903,2]
[392679882,1761809449904,-500.0,0.00030903,4]
[392679883,1761809449913,-500.0,0.00030903,4]
[392679884,1761809449922,-500.0,0.00030903,4]
[392679885,1761809449931,-500.0,0.00030903,4]
[392679886,1761809449940,-500.0,0.00030903,4]
[392679887,1761809449949,-500.0,0.00030903,4]
[392679888,1761809449958,-500.0,0.00030903,4]
[392679889,1761809449967,-500.0,0.00030903,4]
[392679890,1761809449977,-500.0,0.00030903,4]
[392679891,1761809449987,-500.0,0.00030903,4]
[392679892,1761809449996,-500.0,0.00030903,4]
[392679893,1761809450006,-500.0,0.00030903,4]
[392679894,1761809450015,-500.0,0.00030903,4]
[392679895,1761809450024,-500.0,0.00030903,4]
[392679896,1761809450033,-500.0,0.00030903,4]
[392679897,1761809450042,-500.0,0.00030903,4]
[392679898,1761809450050,-500.0,0.00030903,4]
[392679899,1761809450059,-500.0,0.00030903,4]
[392679900,1761809450068,-500.0,0.00030903,4]
[392679901,1761809450077,-500.0,0.00030903,4]
[392679902,1761809450086,-500.0,0.00030903,4]
[392679903,1761809450095,-500.0,0.00030903,4]
[392679904,1761809450104,-500.0,0.00030903,4]
[392679905,1761809450112,-500.0,0.00030903,4]
[392679906,1761809450122,-500.0,0.00030903,4]
[392679907,1761809450130,-500.0,0.00030903,4]
[392679908,1761809450140,-500.0,0.00030903,4]
[392679909,1761809450149,-500.0,0.00030903,4]
[392679910,1761809450157,-500.0,0.00030903,4]
[392679911,1761809450166,-500.0,0.00030903,4]
[392679912,1761809450175,-500.0,0.00030903,4]
[392679913,1761809450184,-500.0,0.00030903,4]
[392679914,1761809450193,-500.0,0.00030903,4]
[392679915,1761809450202,-500.0,0.00030903,4]
[392679916,1761809450211,-500.0,0.00030903,4]
[392679917,1761809450221,-500.0,0.00030903,4]
[392679918,1761809450231,-500.0,0.00030903,4]
[392679919,1761809450246,-500.0,0.00030903,4]
[392679920,1761809450255,-500.0,0.00030903,4]
[392679921,1761809450264,-616.88146627,0.00030903,4]
[392679922,1761809450273,-500.0,0.00030903,4]
[392679923,1761809450282,-500.0,0.00030903,4]
[392679924,1761809450295,-500.0,0.00030903,4]
[392679925,1761809450306,-500.0,0.00030903,4]
[392679926,1761809450316,-500.0,0.00030903,4]
[392679927,1761809450325,-500.0,0.00030903,4]
[392679928,1761809450335,-500.0,0.00030903,4]
[392679929,1761809450344,-500.0,0.00030903,4]
[392679930,1761809450353,-500.0,0.00030903,4]
[392679931,1761809450362,-500.0,0.00030903,4]
[392679932,1761809450371,-500.0,0.00030903,4]
[392679933,1761809450380,-500.0,0.00030903,4]
[392679934,1761809450390,-500.0,0.00030903,4]
[392679935,1761809450399,-494.07291013,0.00030903,4]
[392679936,1761809450413,-500.0,0.00030903,4]
[392679937,1761809450423,-500.0,0.00030903,4]
[392679938,1761809450432,-500.0,0.00030903,4]
[392679939,1761809450441,-500.0,0.00030903,4]
[392679940,1761809450450,-500.0,0.00030903,4]
[392679941,1761809450459,-500.0,0.00030903,4]
[392679942,1761809450469,-500.0,0.00030903,4]
[392679943,1761809450478,-500.0,0.00030903,4]
[392679944,1761809450493,-500.0,0.00030903,4]
[392679945,1761809450502,-500.0,0.00030903,4]
[392679946,1761809450511,-500.0,0.00030903,4]
[392679947,1761809450520,-500.0,0.00030903,4]
[392679948,1761809450529,-500.0,0.00030903,4]
[392679949,1761809450539,-500.0,0.00030903,4]
[392679950,1761809450548,-500.0,0.00030903,2]
[392679951,1761809450630,-500.0,0.00030903,4]
[392679952,1761809450640,-610.49441842,0.00030903,4]
[392679953,1761809450650,-500.0,0.00030903,4]
[392679954,1761809450659,-500.0,0.00030903,4]
[392679955,1761809450669,-500.0,0.00030903,4]
[392679956,1761809450678,-152.867519,0.00030903,31]
[392679957,1761809450688,-500.0,0.00030903,4]
[392679958,1761809450697,-500.0,0.00030903,4]
[392679959,1761809450706,-500.0,0.00030903,4]